Cogmind - Beta 11.1 @@@ ROGUE MODE // 2022.04.28 @ 16:45:23 Player: SNACKS Result: Destroyed by M Guard with Ragnarok Missile Launcher Performance ------------- Evolutions (9) 4500 Regions Visited (24) 4800 Robots Destroyed (42) 210 Value Destroyed (1407) 1407 Prototype IDs (48) 960 Alien Tech Used (1) 200 Bonus (4313) 4313 TOTAL SCORE: 16390 Bonus ------- High Alert Combat Kills 8 Follower Combat Kills 209 Entered DSFs 500 Aligned with FarCom 300 Met Zhirov 300 Met Warlord at Base 500 MAIN.C Attacked Warlord 500 Met Warlord at Research 2000 Friendly Fire -4 Cogmind --------- Core Integrity 0/1600 Matter 226/300 Energy 71/100 System Corruption 12% Temperature Cool (0) Movement Core (50) Location -1/Command Parts ------- > --- POWER (3) -------- (None) > --- PROPULSION (9) --- (None) > --- UTILITY (11) ----- Enhanced Optical Array Experimental System Shield > --- WEAPON (2) ------- (None) > --- INVENTORY (5) ---- Light Antimatter Reactor Micro Antimatter Reactor Stasis Canceller Peak State ------------ > --- POWER ------------ Light Particle Reactor Light Particle Reactor Micro Antimatter Reactor > --- PROPULSION ------- Cooled Nuclear Pulse Thruster Cooled Nuclear Pulse Thruster Nuclear Pulse Array Q-thruster Impulse Thruster Array Impulse Thruster Array > --- UTILITY ---------- Advanced Heat Sink Medium Storage Unit Enhanced Optical Array Advanced Transmission Jammer Improved Reaction Control System Advanced Phase Shifter Improved Cloaking Device Centrium Light Armor Plating Hacking Suite Experimental System Shield Advanced Corruption Screen > --- WEAPON ----------- Heavy Pick > --- INVENTORY -------- Micro Antimatter Reactor Micro Antimatter Reactor Light Quantum Reactor Medium Storage Unit Stasis Canceller Enhanced Quantum Rifle Micro-nuke Launcher Centrium Greatsword Sapper Charge [Rating: 169] Favorites ----------- Power Light Particle Reactor Engine Light Ion Engine Power Core Micro Nuclear Core Reactor Light Particle Reactor Propulsion Cooled Nuclear Pulse Thruster Leg Aluminum Leg Flight Unit Cooled Nuclear Pulse Thruster Utility Small Storage Unit Device Advanced Weight Redist. System Storage Small Storage Unit Processor Enhanced Optical Array Hackware Hacking Suite Protection Centrium Light Armor Plating Weapon Beam Cannon Energy Gun Improved Lightning Gun Energy Cannon Beam Cannon Ballistic Gun Light Assault Rifle Launcher Shock Bomb Launcher Special Weapon Field Lobotomy Kit Impact Weapon Makeshift Hammer Slashing Weapon Power Sword Piercing Weapon Heavy Pick Build | -11 -10 -10 -9 -9 -9 -8 -8 -7 -7 -6 -5 -5 -5 -5 -4 -4 -4 -4 -4 -3 -3 -2 -1 -1 ------- Run | Scr Mat Min Mat Min Exi Min Mat Fac DSF Fac Fac Upp Upp War Pro Fac Upp Upp Zhi Pro Res Res Acc Com Slots Evolved 18 | . . . 2 . . . 2 2 . 2 2 . . . . 2 . . . . 2 2 2 . Power 2 | . . . . . . . . . . . 1 . . . . . . . . . . 1 . . Propulsion 7 | . . . . . . . 2 . . . . . . . . 1 . . . . 1 1 2 . Utility 9 | . . . 2 . . . . 2 . 2 1 . . . . 1 . . . . 1 . . . Weapon . | . . . . . . . . . . . . . . . . . . . . . . . . . Parts Attached 145 | 6 2 . 4 13 2 . 12 5 1 9 7 . 2 . 6 10 . 7 7 4 15 11 13 9 Power 22 | 1 . . . 2 . . . 2 . . 3 . . . . . . 2 . . 3 3 4 2 Engine 8 | 1 . . . 2 . . . 2 . . 1 . . . . . . 1 . . 1 . . . Core 2 | . . . . . . . . . . . 2 . . . . . . . . . . . . . Reactor 12 | . . . . . . . . . . . . . . . . . . 1 . . 2 3 4 2 Propulsion 26 | 2 . . 1 1 . . 6 . 1 2 . . . . . 1 . . 3 . 1 5 3 . Treads . | . . . . . . . . . . . . . . . . . . . . . . . . . Leg 4 | 2 . . 1 1 . . . . . . . . . . . . . . . . . . . . Wheel . | . . . . . . . . . . . . . . . . . . . . . . . . . Hover . | . . . . . . . . . . . . . . . . . . . . . . . . . Flight 22 | . . . . . . . 6 . 1 2 . . . . . 1 . . 3 . 1 5 3 . Utility 58 | 1 1 . 2 4 . . 2 3 . 5 3 . 1 . 3 5 . 1 4 3 11 3 4 2 Device 39 | . 1 . . 4 . . . 3 . 3 2 . . . 2 4 . 1 3 3 7 3 1 2 Storage 3 | 1 . . 1 . . . . . . . . . . . . . . . . . 1 . . . Processor 9 | . . . 1 . . . 2 . . 2 1 . 1 . 1 . . . . . 1 . . . Hackware 5 | . . . . . . . . . . . . . . . . 1 . . . . 1 . 3 . Protection 2 | . . . . . . . . . . . . . . . . . . . 1 . 1 . . . Artifact . | . . . . . . . . . . . . . . . . . . . . . . . . . Weapon 39 | 2 1 . 1 6 2 . 4 . . 2 1 . 1 . 3 4 . 4 . 1 . . 2 5 Energy Gun 4 | 1 . . . . . . . . . 1 1 . . . . 1 . . . . . . . . Energy Cannon 8 | . 1 . . 1 1 . 2 . . . . . . . 1 1 . . . . . . . 1 Ballistic Gun 1 | 1 . . . . . . . . . . . . . . . . . . . . . . . . Ballistic Cannon . | . . . . . . . . . . . . . . . . . . . . . . . . . Launcher 9 | . . . . 3 . . 1 . . . . . 1 . 1 . . 1 . . . . . 2 Special Weapon 3 | . . . . . 1 . . . . . . . . . 1 . . 1 . . . . . . Impact Weapon 4 | . . . 1 2 . . 1 . . . . . . . . . . . . . . . . . Slashing Weapon 7 | . . . . . . . . . . 1 . . . . . 2 . 1 . . . . 2 1 Piercing Weapon 3 | . . . . . . . . . . . . . . . . . . 1 . 1 . . . 1 Special Melee Weapon . | . . . . . . . . . . . . . . . . . . . . . . . . . Unidentified Prototypes 13 | . . . . 1 . . 2 1 . 2 1 . . . . . . . 2 1 2 . 1 . Parts Lost 41 | . . . . . . . . 1 1 3 . . . . 5 . . 1 . 5 . 1 2 22 Power 7 | . . . . . . . . 1 . . . . . . 1 . . 1 . . . . . 4 Propulsion 11 | . . . . . . . . . 1 2 . . . . 1 . . . . . . . 1 6 Utility 18 | . . . . . . . . . . 1 . . . . 3 . . . . 4 . 1 1 8 Weapon 5 | . . . . . . . . . . . . . . . . . . . . 1 . . . 4 Highest Loss Streak 21 | . . . . . . . . 1 1 3 . . . . 5 . . 1 . 2 . 1 2 21 To Critical Strikes . | . . . . . . . . . . . . . . . . . . . . . . . . . Average Slot Usage (%) 90 | . 93 100 88 96 100 100 100 92 100 94 94 94 94 94 88 79 89 88 89 88 88 82 82 72 Engine 5 | . 14 14 11 11 11 11 9 6 7 6 2 5 5 5 5 5 5 4 5 5 1 . . . Reactor 3 | . . . . . . . . . . . . . . . . . . . . . 6 12 12 10 Leg 6 | . 28 28 22 22 22 22 . . . . . . . . . . . . . . . . . . Flight 16 | . . . . . . . 36 30 30 25 23 23 23 23 21 15 21 21 22 26 27 19 23 22 Device 17 | . 8 14 11 18 22 22 9 15 23 22 23 23 23 23 20 15 15 15 18 14 17 21 18 12 Storage 6 | . 14 14 11 11 11 11 9 7 7 6 5 5 5 5 5 5 5 5 5 5 4 4 4 4 Processor 14 | . . . 11 11 11 11 17 15 15 19 20 23 23 23 23 26 26 25 21 21 18 14 6 4 Hackware 2 | . . . . . . . . . . . . . . . . 4 5 5 5 4 1 . 9 10 Protection 1 | . . . . . . . . . . . . . . . . . . . 2 5 4 4 4 3 Energy Cannon 6 | . 7 14 11 18 21 22 16 7 7 2 . . . . 1 1 . . . . . . . . Ballistic Gun 1 | . 14 14 7 . . . . . . . . . . . . . . . . . . . . . Slashing Weapon 1 | . . . . . . . . . . 3 5 5 5 5 3 3 5 1 . . . . . . Piercing Weapon 1 | . . . . . . . . . . . . . . . . . . . . 2 4 4 3 3 Naked Turns . | . . . . . . . . . . . . . . . . . . . . . . . . . Heaviest Build 65 | 13 15 15 16 18 21 16 16 25 25 26 27 26 26 26 29 25 25 31 31 27 46 60 65 63 Greatest Support 73 | 20 20 20 23 28 28 28 18 27 27 29 29 29 29 29 29 31 31 31 37 29 43 62 65 73 Greatest Overweight (x) 4 | 4 . . . . . . . . . . . . . . . . . . . . 1 . 1 . Average Overweight (x) . | . . . . . . . . . . . . . . . . . . . . . . . . . Largest Inventory Capacity 25 | 8 8 8 25 8 8 8 8 8 8 8 8 8 8 8 8 8 8 8 8 8 10 10 10 10 Average Capacity 8 | 7 8 8 8 8 8 8 8 8 8 8 8 8 8 8 8 8 8 8 8 8 9 10 10 9 Most Carried 10 | 4 8 8 8 8 8 8 8 8 8 8 8 8 8 8 8 8 8 8 8 8 10 10 10 10 Average Carried 8 | 2 6 7 7 7 7 8 7 7 7 7 7 8 7 8 8 8 8 6 7 6 7 9 9 9 Final Capacity 10 | 8 8 8 8 8 8 8 8 8 8 8 8 8 8 8 8 8 8 8 8 8 10 10 10 5 Final Carried 10 | 4 8 8 8 8 8 8 8 8 8 8 8 8 8 8 8 8 8 7 8 4 10 10 7 3 Class Distribution -------------------- 37% | Sprinter 29% | Mutant 12% | Generator-Sprinter 10% | Hacker-Sprinter 10% | Scavenger-Sprinter Dominant Class ---------------- Mutant | -10/Materials Mutant | -10/Mines Mutant | -9/Materials Mutant | -9/Mines Mutant | -9/Exiles Skirmisher | -8/Mines Scavenger-Sprinter | -8/Materials Scavenger-Sprinter | -7/Factory Scavenger-Sprinter | -7/DSF Sprinter | -6/Factory Sprinter | -5/Factory Sprinter | -5/Upper Caves Sprinter | -5/Upper Caves Sprinter | -5/Warlord Sprinter | -4/Proximity Caves Sprinter | -4/Factory Sprinter | -4/Upper Caves Sprinter | -4/Upper Caves Sprinter | -4/Zhirov Sprinter | -3/Proximity Caves Sprinter | -3/Research Generator-Sprinter | -2/Research Hacker-Sprinter | -1/Access Hacker-Sprinter | -1/Command Resources | -11 -10 -10 -9 -9 -9 -8 -8 -7 -7 -6 -5 -5 -5 -5 -4 -4 -4 -4 -4 -3 -3 -2 -1 -1 ----------- Run | Scr Mat Min Mat Min Exi Min Mat Fac DSF Fac Fac Upp Upp War Pro Fac Upp Upp Zhi Pro Res Res Acc Com Matter Collected 1952 | 219 49 . 54 338 . . 90 . 2 210 55 . 77 . 193 60 22 88 . 51 184 130 90 40 Remotely . | . . . . . . . . . . . . . . . . . . . . . . . . . Salvage Created 1555 | . 49 . 90 374 . . 94 . . 304 55 . 60 . 65 28 . 115 . . 43 131 74 73 Parts 85 | . 3 . 4 18 . . 6 . . 11 4 . 3 . 2 4 . 8 . . 3 8 6 5 Haulers Intercepted 2 | . . . . . . . . . . 2 . . . . . . . . . . . . . . Recyclers Shooed . | . . . . . . . . . . . . . . . . . . . . . . . . . Parts Field Recycled . | . . . . . . . . . . . . . . . . . . . . . . . . . Retrieved Matter . | . . . . . . . . . . . . . . . . . . . . . . . . . Parts Self-Destructed 56 | . . . . . . . . . . . . . 2 36 8 . 3 7 . . . . . . Prevented 14 | . . . . . . . . . . . . . 2 3 1 . 4 3 . 1 . . . . Kills | -11 -10 -10 -9 -9 -9 -8 -8 -7 -7 -6 -5 -5 -5 -5 -4 -4 -4 -4 -4 -3 -3 -2 -1 -1 ------- Run | Scr Mat Min Mat Min Exi Min Mat Fac DSF Fac Fac Upp Upp War Pro Fac Upp Upp Zhi Pro Res Res Acc Com Combat Hostiles Destroyed 38 | . 3 . 2 23 . . 3 . . 1 . . 2 . 1 . . 3 . . . . . . Melee 2 | . . . . . . . . . . 1 . . . . . . . 1 . . . . . . Guns 3 | . 3 . . . . . . . . . . . . . . . . . . . . . . . Cannons 10 | . . . 1 6 . . 2 . . . . . . . 1 . . . . . . . . . AOE 22 | . . . . 17 . . 1 . . . . . 2 . . . . 2 . . . . . . Classes Destroyed 12 | . 1 . 2 3 . . 2 . . 2 1 . . . 1 . . . . . . . . . Worker 1 | . . . . 1 . . . . . . . . . . . . . . . . . . . . Hauler 2 | . . . . . . . . . . 2 . . . . . . . . . . . . . . Recycler 2 | . . . . 2 . . . . . . . . . . . . . . . . . . . . Operator 2 | . . . . . . . . . . . 1 . . . . 1 . . . . . . . . Watcher 12 | . . . . . . . 1 . . 1 1 . . . . . . . . . 1 4 2 2 Swarmer 11 | . 3 . . 4 . . . . . . . . 2 . . . . 2 . . . . . . Cutter 2 | . . . . . . . 2 . . . . . . . . . . . . . . . . . Grunt 6 | . . . 1 4 . . 1 . . . . . . . . . . . . . . . . . Duelist 1 | . . . 1 . . . . . . . . . . . . . . . . . . . . . Hunter 2 | . . . . . . . . . . . . . . . 1 . . 1 . . . . . . Programmer 1 | . . . . . . . . . . 1 . . . . . . . . . . . . . . Assembled 15 | . . . . 15 . . . . . . . . . . . . . . . . . . . . Best Kill Streak 15 | . 3 . 2 15 . . 4 . . 1 1 . 2 . 1 1 . 2 . . 1 1 1 1 Combat Bots Only 15 | . 3 . 2 15 . . 3 . . 1 . . 2 . 1 . . 2 . . . . . . Max Kills in Single Turn 4 | . 2 . 1 4 . . 1 . . 1 1 . 1 . 1 1 . 1 . . 1 1 1 1 Gunslinging 1 | . 1 . . . . . . . . . . . . . . . . . . . . . . . Exploded 4 | . . . . 4 . . 1 . . . . . 1 . . . . 1 . . . . . . Melee 1 | . . . . . . . . . . 1 . . . . . . . 1 . . . . . . Uniques/NPCs Destroyed . | . . . . . . . . . . . . . . . . . . . . . . . . . Combat | -11 -10 -10 -9 -9 -9 -8 -8 -7 -7 -6 -5 -5 -5 -5 -4 -4 -4 -4 -4 -3 -3 -2 -1 -1 -------- Run | Scr Mat Min Mat Min Exi Min Mat Fac DSF Fac Fac Upp Upp War Pro Fac Upp Upp Zhi Pro Res Res Acc Com Damage Taken 6648 | . 81 . 31 412 . . 108 . 116 424 . . 98 . 487 25 . 356 . 336 . 283 475 3416 Core 2329 | . 8 . . 99 . . 15 . 58 160 . . 26 . 85 25 . 109 . 26 . 98 . 1620 Absorbed by Shields 77 | . . . . . . . . . 15 34 . . . . 28 . . . . . . . . . Redirected to Shielding 123 | . . . . . . . . . . . . . . . . . . . . 123 . . . . Regen/Repaired (Parts) 24 | . . . . . . . . 24 . . . . . . . . . . . . . . . . Core Remaining (%) 90 | 100 . 96 . . . 75 97 . 91 81 . . . . 88 . . . . 80 100 93 . . Volleys Fired 95 | . 4 . 9 39 . . 18 . . . . . 4 . 11 1 . 4 . . . . . 5 Largest 2 | . 2 . 2 2 . . 2 . . . . . 1 . 1 1 . 1 . . . . . 1 Hottest 120 | . 70 . 80 120 . . 120 . . . . . 36 . 85 85 . 36 . . . . . 120 Shots Fired 127 | . 8 . 17 58 . . 19 . . . . . 4 . 11 1 . 4 . . . . . 5 Gun 17 | . 8 . 8 . . . . . . . . . . . . 1 . . . . . . . . Cannon 73 | . . . 9 40 . . 17 . . . . . . . 6 . . . . . . . . 1 Launcher 32 | . . . . 18 . . 2 . . . . . 4 . 1 . . 3 . . . . . 4 Special 5 | . . . . . . . . . . . . . . . 4 . . 1 . . . . . . Kinetic 12 | . 4 . 8 . . . . . . . . . . . . . . . . . . . . . Thermal 78 | . 4 . 9 40 . . 17 . . . . . . . 6 1 . . . . . . . 1 Explosive 24 | . . . . 18 . . 2 . . . . . . . . . . . . . . . . 4 Electromagnetic 8 | . . . . . . . . . . . . . 4 . 1 . . 3 . . . . . . Robot Hit Streak 14 | . 3 . 2 14 . . 4 . . . . . 2 . 8 . . 2 . . . . . 3 Robot Miss Streak 6 | . 1 . 4 6 . . 3 . . . . . 2 . 1 . . 1 . . . . . 1 Penetration Max . | . . . . . . . . . . . . . . . . . . . . . . . . . Secondary Targets 1 | . 1 . . . . . . . . . . . . . . . . . . . . . . . Max Gunslinging Chain 1 | . 1 . . . . . . . . . . . . . . . . . . . . . . . Shots Hit Robots 116 | . 5 . 4 36 . . 11 . . 8 6 . 2 . 9 4 . 10 . . 2 8 3 8 Core Hits 89 | . 4 . 1 41 . . 6 . . 3 1 . 4 . 2 1 . 5 . . 1 4 2 14 Critical Kills 2 | . . . 1 . . . 1 . . . . . . . . . . . . . . . . . Critical Parts Destroyed . | . . . . . . . . . . . . . . . . . . . . . . . . . Critical Strikes 5 | . . . 1 . . . 1 . . . . . . . . 1 . . . . . 1 . 1 Meltdown 2 | . . . 1 . . . 1 . . . . . . . . . . . . . . . . . Sever 1 | . . . . . . . . . . . . . . . . 1 . . . . . . . . Impale 2 | . . . . . . . . . . . . . . . . . . . . . . 1 . 1 Melee Attacks 178 | . . . 1 5 . . 2 . 1 31 17 . 2 8 1 8 . 10 . 6 14 17 32 23 Impact 23 | . . . 1 5 . . 2 . 1 14 . . . . . . . . . . . . . . Slashing 67 | . . . . . . . . . . 17 17 . 2 8 1 8 . 9 . . . . 4 1 Piercing 88 | . . . . . . . . . . . . . . . . . . 1 . 6 14 17 28 22 Sneak Attacks 7 | . . . . 2 . . . . . 3 . . . . . . . . . . 1 . 1 . Combat Hostiles . | . . . . . . . . . . . . . . . . . . . . . . . . . Follow-up Attacks . | . . . . . . . . . . . . . . . . . . . . . . . . . Damage Inflicted 5372 | . 48 . 68 1808 . . 359 . . 514 287 . 82 . 151 215 . 434 . . 144 400 238 624 Guns 64 | . 48 . 16 . . . . . . . . . . . . . . . . . . . . . Cannons 927 | . . . 52 458 . . 213 . . . . . . . 151 . . . . . . . . 53 Explosions 1956 | . . . . 1230 . . 146 . . . . . 82 . . . . 135 . . . . . 363 Melee 2413 | . . . . 120 . . . . . 514 287 . . . . 215 . 299 . . 144 400 238 196 Ramming 12 | . . . . . . . . . . . . . . . . . . . . . . . . 12 Kinetic 52 | . 36 . 16 . . . . . . . . . . . . . . . . . . . . . Thermal 939 | . 12 . 52 458 . . 213 . . . . . . . 151 . . . . . . . . 53 Explosive 1739 | . . . . 1230 . . 146 . . . . . . . . . . . . . . . . 363 Electromagnetic 217 | . . . . . . . . . . . . . 82 . . . . 135 . . . . . . Impact 223 | . . . . 120 . . . . . 103 . . . . . . . . . . . . . . Slashing 1212 | . . . . . . . . . . 411 287 . . . . 215 . 299 . . . . . . Piercing 978 | . . . . . . . . . . . . . . . . . . . . . 144 400 238 196 Highest Corruption 12 | . . . . . . . . . . . . . . . . . . . . 5 . . . 12 Average Corruption 4 | . . . . . . . . . . . . . . . . . . . . 2 . . . 4 Corruption Purged . | . . . . . . . . . . . . . . . . . . . . . . . . . Corruption Blocked 22 | . . . . . . . . . . . . . . . . . . . . . . 7 15 . Overload Shots . | . . . . . . . . . . . . . . . . . . . . . . . . . Overflow Damage 471 | . . . . 74 . . 1 . . 123 55 . . . . 65 . 21 . . . 77 42 13 Projectiles 13 | . . . . 12 . . 1 . . . . . . . . . . . . . . . . . Explosions 45 | . . . . 12 . . . . . . . . . . . . . 21 . . . . . 12 Melee 413 | . . . . 50 . . . . . 123 55 . . . . 65 . . . . . 77 42 1 Knockbacks 1 | . . . . . . . . . . 1 . . . . . . . . . . . . . . Impact 1 | . . . . . . . . . . 1 . . . . . . . . . . . . . . Kinetic . | . . . . . . . . . . . . . . . . . . . . . . . . . Secondary . | . . . . . . . . . . . . . . . . . . . . . . . . . Self-Inflicted Damage 112 | . . . . . . . . . . . . . 7 . . . . . . . . . . 105 Shots 5 | . . . . . . . . . . . . . 2 . . . . . . . . . . 3 Rammed 1 | . . . . . . . . . . . . . . . . . . . . . . . . 1 Targets Rammed 1 | . . . . . . . . . . . . . . . . . . . . . . . . 1 Kicked . | . . . . . . . . . . . . . . . . . . . . . . . . . Crushed . | . . . . . . . . . . . . . . . . . . . . . . . . . Highest Temperature 272 | . 60 . 78 272 . . 12 . . . . . . . 22 . . . . . 4 . 32 84 Average Temperature 42 | . 30 . 32 79 . . 5 . . . . . . . 13 . . . . . 1 . 18 48 Received Heat Transfer 318 | . . . . 105 . . 27 . . . . . . . 60 . . . . 9 . . 63 54 Siege Activations . | . . . . . . . . . . . . . . . . . . . . . . . . . Robots Corrupted . | . . . . . . . . . . . . . . . . . . . . . . . . . Combat Hostiles . | . . . . . . . . . . . . . . . . . . . . . . . . . Parts Fried 6 | . . . . 5 . . . . . 1 . . . . . . . . . . . . . . Impact Corruptions 5 | . . . . 3 . . . . . 2 . . . . . . . . . . . . . . Robots Melted 2 | . . . 1 . . . 1 . . . . . . . . . . . . . . . . . Combat Hostiles 1 | . . . 1 . . . . . . . . . . . . . . . . . . . . . Parts Melted 2 | . . . 1 . . . 1 . . . . . . . . . . . . . . . . . Heat Transferred 1757 | . 37 . 111 962 . . 444 . . . . . . . 185 . . . . . . . . 18 Parts Sabotaged . | . . . . . . . . . . . . . . . . . . . . . . . . . Parts Stolen . | . . . . . . . . . . . . . . . . . . . . . . . . . Parts Stripped . | . . . . . . . . . . . . . . . . . . . . . . . . . Power Chain Reactions . | . . . . . . . . . . . . . . . . . . . . . . . . . Missiles Intercepted . | . . . . . . . . . . . . . . . . . . . . . . . . . Alert | -11 -10 -10 -9 -9 -9 -8 -8 -7 -7 -6 -5 -5 -5 -5 -4 -4 -4 -4 -4 -3 -3 -2 -1 -1 ------- Run | Scr Mat Min Mat Min Exi Min Mat Fac DSF Fac Fac Upp Upp War Pro Fac Upp Upp Zhi Pro Res Res Acc Com Peak Influence 590 | . 73 28 113 417 . . 141 . 1 110 204 . . . . 182 . . . . 143 407 332 590 Initial 228 | . . 28 10 43 . . . . . . 19 . . . . 80 . . . . . 80 228 208 Average 141 | . 56 28 65 191 . . 38 . . 33 92 . . . . 104 . . . . 81 235 247 321 Maximum Alert Level 2 | . . . . 2 . . . . . . 1 . . . . . . . . . . 2 1 2 Low Security (%) 66 | 100 100 100 100 43 . 100 100 100 100 100 93 . . . . 100 . . . . 100 27 27 . Level 1 31 | . . . . 52 . . . . . . 6 . . . . . . . . . . 72 72 78 Level 2 2 | . . . . 3 . . . . . . . . . . . . . . . . . . . 21 Level 3 . | . . . . . . . . . . . . . . . . . . . . . . . . . Level 4 . | . . . . . . . . . . . . . . . . . . . . . . . . . Level 5 . | . . . . . . . . . . . . . . . . . . . . . . . . . High Security . | . . . . . . . . . . . . . . . . . . . . . . . . . Max Security . | . . . . . . . . . . . . . . . . . . . . . . . . . Squads Dispatched 20 | . 1 . . . . . 2 . . 3 1 . . . 1 . . . . 1 2 3 3 3 Investigation 2 | . 1 . . . . . . . . 1 . . . . . . . . . . . . . . Extermination 4 | . . . . . . . . . . 1 . . . . . . . . . . . . 2 1 Reinforcement 12 | . . . . . . . 2 . . 1 1 . . . . . . . . . 2 3 1 2 Assault 2 | . . . . . . . . . . . . . . . 1 . . . . 1 . . . . Garrison . | . . . . . . . . . . . . . . . . . . . . . . . . . Intercept . | . . . . . . . . . . . . . . . . . . . . . . . . . Searches Triggered . | . . . . . . . . . . . . . . . . . . . . . . . . . Construction Impeded . | . . . . . . . . . . . . . . . . . . . . . . . . . Haulers Reinforced 2 | . . . . . . . . . . . . . . . . . . . . . . 2 . . Active Scanning Responses . | . . . . . . . . . . . . . . . . . . . . . . . . . Cargo Convoy Interrupts . | . . . . . . . . . . . . . . . . . . . . . . . . . Stealth | -11 -10 -10 -9 -9 -9 -8 -8 -7 -7 -6 -5 -5 -5 -5 -4 -4 -4 -4 -4 -3 -3 -2 -1 -1 --------- Run | Scr Mat Min Mat Min Exi Min Mat Fac DSF Fac Fac Upp Upp War Pro Fac Upp Upp Zhi Pro Res Res Acc Com Distress Signals 7 | . . . 1 . . . . . . . . . . . . 1 . . . . 1 4 . . Communications Jammed 34 | . . . . . . . . . . 5 . . . . 17 . . . . . . 1 1 10 Distress Signals 33 | . . . . . . . . . . 4 . . . . 17 . . . . . . 1 1 10 Times Spotted 191 | . 3 . 7 26 . . 7 . 2 5 8 . 4 4 11 4 9 26 . 5 5 22 18 25 Peak Tracking Total 18 | . 3 . 4 18 . . 3 . 2 1 2 . 4 4 10 2 12 12 . 8 4 7 12 18 Tactical Retreats 18 | . . . . . . . . . . 3 1 . 1 . 1 . 2 5 . . 1 2 1 1 Traps | -11 -10 -10 -9 -9 -9 -8 -8 -7 -7 -6 -5 -5 -5 -5 -4 -4 -4 -4 -4 -3 -3 -2 -1 -1 ------- Run | Scr Mat Min Mat Min Exi Min Mat Fac DSF Fac Fac Upp Upp War Pro Fac Upp Upp Zhi Pro Res Res Acc Com Traps Triggered 7 | . 1 . . . . . . . 1 3 1 . . . . . . . . . 1 . . . Indirectly . | . . . . . . . . . . . . . . . . . . . . . . . . . Trap Hack Attempts . | . . . . . . . . . . . . . . . . . . . . . . . . . Triggered . | . . . . . . . . . . . . . . . . . . . . . . . . . Disarmed . | . . . . . . . . . . . . . . . . . . . . . . . . . Reprogrammed 6 | . . . . . . . . . . . . . . . . 6 . . . . . . . . Reused . | . . . . . . . . . . . . . . . . . . . . . . . . . Traps Extracted . | . . . . . . . . . . . . . . . . . . . . . . . . . Installed . | . . . . . . . . . . . . . . . . . . . . . . . . . Triggered 13 | . . . . . . . . . . . . 3 . 8 . . 1 . . 1 . . . . Time Bombs Activated 2 | . . . . . . . . . . . . . . . . . . . . . . . 2 . Exploded 1 | . . . . . . . . . . . . . . . . . . . . . . . 1 . Machines | -11 -10 -10 -9 -9 -9 -8 -8 -7 -7 -6 -5 -5 -5 -5 -4 -4 -4 -4 -4 -3 -3 -2 -1 -1 ---------- Run | Scr Mat Min Mat Min Exi Min Mat Fac DSF Fac Fac Upp Upp War Pro Fac Upp Upp Zhi Pro Res Res Acc Com Machines Disabled 7 | . . . 1 . . . 1 . . . 1 . . . . . . 1 . . . 1 2 . Max in Single Turn 1 | . . . 1 . . . 1 . . . 1 . . . . . . 1 . . . 1 1 . Garrison Access 1 | . . . . . . . . . . . . . . . . . . . . . . 1 . . Machines Sabotaged . | . . . . . . . . . . . . . . . . . . . . . . . . . Garrisons Compromised . | . . . . . . . . . . . . . . . . . . . . . . . . . Overloaded Fab Kills . | . . . . . . . . . . . . . . . . . . . . . . . . . Hacking | -11 -10 -10 -9 -9 -9 -8 -8 -7 -7 -6 -5 -5 -5 -5 -4 -4 -4 -4 -4 -3 -3 -2 -1 -1 --------- Run | Scr Mat Min Mat Min Exi Min Mat Fac DSF Fac Fac Upp Upp War Pro Fac Upp Upp Zhi Pro Res Res Acc Com Machines Accessed 55 | . . . 1 . 2 . 5 2 . 7 3 . . 6 . 7 . . 7 . 2 3 8 2 Terminals 37 | . . . 1 . . . 5 1 . 7 3 . . . . 6 . . . . 1 3 8 2 Fabricators 2 | . . . . . . . . . . . . . . . . 1 . . . . 1 . . . Repair Stations 1 | . . . . . . . . 1 . . . . . . . . . . . . . . . . Recycling Units . | . . . . . . . . . . . . . . . . . . . . . . . . . Scanalyzers . | . . . . . . . . . . . . . . . . . . . . . . . . . Garrison Access . | . . . . . . . . . . . . . . . . . . . . . . . . . Total Hacks 135 | . . . 2 . 5 . 15 4 . 20 7 . . 12 . 16 . . 28 . 5 6 12 3 Successful 89 | . . . 1 . 5 . 7 3 . 8 3 . . 12 . 12 . . 28 . 3 2 5 . Failed 46 | . . . 1 . . . 8 1 . 12 4 . . . . 4 . . . . 2 4 7 3 Catastrophic 10 | . . . 1 . . . 1 . . 2 1 . . . . 1 . . . . . 2 2 . Database Lockouts . | . . . . . . . . . . . . . . . . . . . . . . . . . Manual 60 | . . . 2 . 1 . 9 . . 13 6 . . . . 10 . . . . 2 5 11 1 Terminals 85 | . . . 2 . . . 15 2 . 20 7 . . . . 14 . . . . 4 6 12 3 Fabricators 3 | . . . . . . . . . . . . . . . . 2 . . . . 1 . . . Repair Stations 2 | . . . . . . . . 2 . . . . . . . . . . . . . . . . Recycling Units . | . . . . . . . . . . . . . . . . . . . . . . . . . Scanalyzers . | . . . . . . . . . . . . . . . . . . . . . . . . . Garrison Access . | . . . . . . . . . . . . . . . . . . . . . . . . . Terminal Hacks 62 | . . . . . 5 . 2 1 . 4 1 . . 12 . 6 . . 28 . 1 1 1 . Record 33 | . . . . . 4 . . . . . . . . 10 . . . . 16 . 1 1 1 . Part Schematic 5 | . . . . . . . . . . . . . . . . 1 . . 4 . . . . . Robot Analysis 4 | . . . . . . . . . . . . . . . . . . . 4 . . . . . Prototype ID Bank 6 | . . . . . . . 1 . . 1 . . . . . . . . 4 . . . . . Open Door 2 | . . . . . . . . . . . . . . 2 . . . . . . . . . . Open DSF 1 | . . . . . . . . 1 . . . . . . . . . . . . . . . . Level Access Points 1 | . . . . . . . . . . . . . . . . 1 . . . . . . . . Branch Access Points 1 | . . . . . . . . . . . . . . . . 1 . . . . . . . . Terminal Index 1 | . . . . . . . 1 . . . . . . . . . . . . . . . . . Locate Traps 2 | . . . . . . . . . . 1 . . . . . 1 . . . . . . . . Reprogram Traps 1 | . . . . . . . . . . . . . . . . 1 . . . . . . . . Maintenance Status 1 | . . . . . . . . . . . . . . . . 1 . . . . . . . . Hauler Manifests 1 | . . . . . . . . . . 1 . . . . . . . . . . . . . . Zone Layout 2 | . . . . . . . . . . 1 1 . . . . . . . . . . . . . EX-Prototype ID Bank 1 | . . . . . 1 . . . . . . . . . . . . . . . . . . . Fabricator Hacks 1 | . . . . . . . . . . . . . . . . 1 . . . . . . . . Network Status 1 | . . . . . . . . . . . . . . . . 1 . . . . . . . . Repair Station Hacks 2 | . . . . . . . . 2 . . . . . . . . . . . . . . . . Scan Component 1 | . . . . . . . . 1 . . . . . . . . . . . . . . . . Repair 1 | . . . . . . . . 1 . . . . . . . . . . . . . . . . Recycling Unit Hacks . | . . . . . . . . . . . . . . . . . . . . . . . . . Scanalyzer . | . . . . . . . . . . . . . . . . . . . . . . . . . Garrison Access Hacks . | . . . . . . . . . . . . . . . . . . . . . . . . . Unauthorized Hacks 24 | . . . 1 . . . 5 . . 4 2 . . . . 5 . . . . 2 1 4 . Terminals 22 | . . . 1 . . . 5 . . 4 2 . . . . 4 . . . . 1 1 4 . Assimilate 2 | . . . . . . . . . . . 1 . . . . . . . . . . . 1 . Botnet 20 | . . . 1 . . . 5 . . 4 1 . . . . 4 . . . . 1 1 3 . Fabricators 2 | . . . . . . . . . . . . . . . . 1 . . . . 1 . . . Report 2 | . . . . . . . . . . . . . . . . 1 . . . . 1 . . . Repair Stations . | . . . . . . . . . . . . . . . . . . . . . . . . . Recycling Units . | . . . . . . . . . . . . . . . . . . . . . . . . . Scanalyzers . | . . . . . . . . . . . . . . . . . . . . . . . . . Garrison Access . | . . . . . . . . . . . . . . . . . . . . . . . . . Data Cores Recovered 2 | . . . . . . . . . . . 1 . . . . 1 . . . . . . . . Used 1 | . . . . . . . . . . . 1 . . . . . . . . . . . . . Hacking Detections 38 | . . . 1 . . . 5 2 . 7 3 . . . . 5 . . . . 1 3 9 2 Full Trace Events 1 | . . . . . . . . . . 1 . . . . . . . . . . . . . . Feedback Events . | . . . . . . . . . . . . . . . . . . . . . . . . . Feedback Blocked . | . . . . . . . . . . . . . . . . . . . . . . . . . Robot Schematics Acquired . | . . . . . . . . . . . . . . . . . . . . . . . . . Robots Built . | . . . . . . . . . . . . . . . . . . . . . . . . . Authchips . | . . . . . . . . . . . . . . . . . . . . . . . . . Time . | . . . . . . . . . . . . . . . . . . . . . . . . . Total Robot Build Rating . | . . . . . . . . . . . . . . . . . . . . . . . . . Part Schematics Acquired 5 | . . . . . . . . . . . . . . . . 1 . . 4 . . . . . Parts Built . | . . . . . . . . . . . . . . . . . . . . . . . . . Authchips . | . . . . . . . . . . . . . . . . . . . . . . . . . Time . | . . . . . . . . . . . . . . . . . . . . . . . . . Total Part Build Rating . | . . . . . . . . . . . . . . . . . . . . . . . . . Parts Repaired 1 | . . . . . . . . 1 . . . . . . . . . . . . . . . . Time 38 | . . . . . . . . 38 . . . . . . . . . . . . . . . . Parts Recycled . | . . . . . . . . . . . . . . . . . . . . . . . . . Recycled Matter . | . . . . . . . . . . . . . . . . . . . . . . . . . Retrieved Matter . | . . . . . . . . . . . . . . . . . . . . . . . . . Retrieved Components . | . . . . . . . . . . . . . . . . . . . . . . . . . Parts Scanalyzed . | . . . . . . . . . . . . . . . . . . . . . . . . . Part Schematics Acquired . | . . . . . . . . . . . . . . . . . . . . . . . . . Parts Damaged . | . . . . . . . . . . . . . . . . . . . . . . . . . Bothacking | -11 -10 -10 -9 -9 -9 -8 -8 -7 -7 -6 -5 -5 -5 -5 -4 -4 -4 -4 -4 -3 -3 -2 -1 -1 ------------ Run | Scr Mat Min Mat Min Exi Min Mat Fac DSF Fac Fac Upp Upp War Pro Fac Upp Upp Zhi Pro Res Res Acc Com Used RIF Installer . | . . . . . . . . . . . . . . . . . . . . . . . . . Robots Hacked . | . . . . . . . . . . . . . . . . . . . . . . . . . Non-combat . | . . . . . . . . . . . . . . . . . . . . . . . . . Combat . | . . . . . . . . . . . . . . . . . . . . . . . . . Robot Hacks Applied . | . . . . . . . . . . . . . . . . . . . . . . . . . Relay Couplers Released 6 | . . . . . . . . . . . . . . . . . . . . . . 6 . . Machine Destruction 3 | . . . . . . . . . . . . . . . . . . . . . . 3 . . Programmers 3 | . . . . . . . . . . . . . . . . . . . . . . 3 . . Fabnet Peak Effective % . | . . . . . . . . . . . . . . . . . . . . . . . . . Robots Rewired . | . . . . . . . . . . . . . . . . . . . . . . . . . Allies Hacked 1 | . . . . . . . . . . . . . . . . . . . . . . . 1 . Hacks Repelled . | . . . . . . . . . . . . . . . . . . . . . . . . . Allies | -11 -10 -10 -9 -9 -9 -8 -8 -7 -7 -6 -5 -5 -5 -5 -4 -4 -4 -4 -4 -3 -3 -2 -1 -1 -------- Run | Scr Mat Min Mat Min Exi Min Mat Fac DSF Fac Fac Upp Upp War Pro Fac Upp Upp Zhi Pro Res Res Acc Com Total Allies 9 | . . . . 2 . . . . . . 1 . . . 4 . . 1 . . . . 1 . Largest Group 4 | . . . . 2 . . . . . . 1 . . . 4 3 1 1 . . . . 1 . Highest-Rated Group 198 | . . . . 48 . . . . . . 10 . . . 198 168 65 56 . . . . 26 . Highest-Rated Ally 65 | . . . . 31 . . . . . . 10 . . . 65 65 65 56 . . . . 26 . Total Orders 9 | . . . . . . . . . . . . . . . 4 5 . . . . . . . . STAY 3 | . . . . . . . . . . . . . . . . 3 . . . . . . . . ROAM 3 | . . . . . . . . . . . . . . . 3 . . . . . . . . . FOLLOW 3 | . . . . . . . . . . . . . . . 1 2 . . . . . . . . Ally Attacks 37 | . . . . 8 . . . . . . . . . . 18 9 . 2 . . . . . . Total Damage 978 | . . . . 127 . . . . . . . . . . 524 249 . 78 . . . . . . Kills 7 | . . . . 1 . . . . . . . . . . 4 2 . . . . . . . . Allies Corrupted . | . . . . . . . . . . . . . . . . . . . . . . . . . Allies Melted 2 | . . . . . . . . . . . . . . . . . . . . . . 2 . . Field Lobotomies 5 | . . . . . . . . . . . . . . . 4 . . 1 . . . . . . Intel | -11 -10 -10 -9 -9 -9 -8 -8 -7 -7 -6 -5 -5 -5 -5 -4 -4 -4 -4 -4 -3 -3 -2 -1 -1 ------- Run | Scr Mat Min Mat Min Exi Min Mat Fac DSF Fac Fac Upp Upp War Pro Fac Upp Upp Zhi Pro Res Res Acc Com Robot Analysis Total 4 | . . . . . . . . . . . . . . . . . . . 4 . . . . . Derelict Logs Recovered 7 | . . 1 . 1 . . . . . . . 3 . . 1 . . 1 . . . . . . Drone Launches . | . . . . . . . . . . . . . . . . . . . . . . . . . Drone Recoveries . | . . . . . . . . . . . . . . . . . . . . . . . . . Decoded 0b10 Intel 11 | . . . . . . . . . . . . . . . . 11 . . . . . . . . Traps 8 | . . . . . . . . . . . . . . . . 8 . . . . . . . . Emergency Access 3 | . . . . . . . . . . . . . . . . 3 . . . . . . . . Exploration | -11 -10 -10 -9 -9 -9 -8 -8 -7 -7 -6 -5 -5 -5 -5 -4 -4 -4 -4 -4 -3 -3 -2 -1 -1 ------------- Run | Scr Mat Min Mat Min Exi Min Mat Fac DSF Fac Fac Upp Upp War Pro Fac Upp Upp Zhi Pro Res Res Acc Com Turns Passed 7578 | 68 192 180 327 1098 353 31 405 108 35 592 372 58 109 236 283 436 76 271 61 239 327 671 694 356 Spaces Moved 12673 | 41 115 123 179 645 289 21 335 226 83 935 922 198 274 612 585 739 251 506 163 457 1045 1845 1413 671 Core 19 | 11 . . . . . . . . . . . . . . . . . . . . . . . 8 Treads . | . . . . . . . . . . . . . . . . . . . . . . . . . Legs 1402 | 30 115 123 179 645 289 21 . . . . . . . . . . . . . . . . . . Wheels . | . . . . . . . . . . . . . . . . . . . . . . . . . Hover . | . . . . . . . . . . . . . . . . . . . . . . . . . Flight 11252 | . . . . . . . 335 226 83 935 922 198 274 612 585 739 251 506 163 457 1045 1845 1413 663 Fastest Speed 21 | 50 120 120 120 120 120 120 29 29 29 29 29 29 29 29 29 29 29 29 24 24 21 22 25 25 Average Speed 38 | 135 120 120 120 120 120 120 30 29 29 29 29 29 29 29 29 31 29 29 27 24 21 29 25 25 Slowest Speed 250 | 250 120 120 120 120 120 120 31 29 29 32 29 29 29 29 32 32 29 29 29 24 90 33 104 50 Overloaded Moves . | . . . . . . . . . . . . . . . . . . . . . . . . . Propulsion Burnouts . | . . . . . . . . . . . . . . . . . . . . . . . . . Robots Hopped 50 | . . . . . . . 3 2 1 11 6 . . . . 1 1 . . . 1 4 14 6 Cave-ins Triggered 2 | . . . . . . . . . . . . . . . . . . . . 2 . . . . Teleports 1 | . . . . . . . . . . . . . . . . . . . . 1 . . . . Exploration Rate (%) 45 | 4 31 41 20 93 67 9 36 6 93 24 16 50 46 91 85 20 60 70 63 62 32 62 35 22 Regions Visited 24 Branch Regions 13 Pre-discovered Areas 8 | . . 1 . . 1 . . . . . . 2 . 1 . . . . 3 . . . . . Known Exits Taken 16 | . . . . . . 1 1 1 . 1 1 1 1 1 1 1 1 1 1 1 1 1 . . Unknown Exits Taken 7 | 1 1 1 1 1 1 . . . . . . . . . . . . . . . . . 1 . Scrap Searched 13 | . . . . 2 . . . . . . . . 1 . 3 . 1 3 . 3 . . . . Spaces Dug 101 | . . . 1 3 . . 2 . 1 19 6 . 2 . 1 4 . . . 5 10 8 23 16 Terrain Destroyed 261 | . . . 1 148 . . 13 . 1 19 6 . 2 . 2 4 . . . 5 10 8 23 19 Melee 101 | . . . 1 3 . . 2 . 1 19 6 . 2 . 1 4 . . . 5 10 8 23 16 Projectile 1 | . . . . . . . . . . . . . . . 1 . . . . . . . . . AOE 159 | . . . . 145 . . 11 . . . . . . . . . . . . . . . . 3 Terrain Rammed . | . . . . . . . . . . . . . . . . . . . . . . . . . Walls Destroyed . | . . . . . . . . . . . . . . . . . . . . . . . . . Machines Disabled . | . . . . . . . . . . . . . . . . . . . . . . . . . Actions | -11 -10 -10 -9 -9 -9 -8 -8 -7 -7 -6 -5 -5 -5 -5 -4 -4 -4 -4 -4 -3 -3 -2 -1 -1 --------- Run | Scr Mat Min Mat Min Exi Min Mat Fac DSF Fac Fac Upp Upp War Pro Fac Upp Upp Zhi Pro Res Res Acc Com Total 14925 | 50 163 156 274 902 295 27 614 265 91 1202 994 197 295 658 676 923 252 608 180 573 1117 1941 1675 797 Wait 1671 | . 31 32 79 186 . 7 234 28 5 196 30 . 13 37 74 161 3 76 . 104 23 50 215 87 Move 12555 | 40 114 122 178 644 288 20 329 221 80 913 910 197 273 611 584 736 248 505 162 456 1042 1837 1386 659 Hop 44 | . . . . . . . 2 2 1 10 5 . . . . 1 1 . . . 1 3 12 6 Pick Up 68 | 4 7 1 . 5 2 . 6 3 1 5 2 . . 1 . 1 . 2 2 1 10 8 4 3 Fast Attach 73 | 6 2 . 2 5 1 . 4 5 . 7 2 . . . 3 7 . 3 6 1 8 4 5 2 Attach 35 | . . . 1 . . . 2 . 1 2 3 . 1 . . . . 2 1 4 3 3 5 7 Detach 18 | . 1 . 1 . . . 2 . . 1 2 . 1 . . . . . 2 . 3 1 3 1 Swap 39 | . . . 1 8 1 . 6 1 . . 2 . 1 . 3 3 . 2 . . 4 4 3 . Drop 95 | . 4 1 2 10 3 . 9 5 . 7 3 . . 1 . 5 . 4 7 1 9 14 7 3 Fire 95 | . 4 . 9 39 . . 18 . . . . . 4 . 11 1 . 4 . . . . . 5 Melee 178 | . . . 1 5 . . 2 . 1 31 17 . 2 8 1 8 . 10 . 6 14 17 32 23 Ram 1 | . . . . . . . . . . . . . . . . . . . . . . . . 1 Kick . | . . . . . . . . . . . . . . . . . . . . . . . . . Crush . | . . . . . . . . . . . . . . . . . . . . . . . . . Escape Stasis 50 | . . . . . . . . . 2 30 18 . . . . . . . . . . . . . Rewire . | . . . . . . . . . . . . . . . . . . . . . . . . . Trap 3 | . . . . . . . . . . . . . . . . . . . . . . . 3 . Miscellaneous . | . . . . . . . . . . . . . . . . . . . . . . . . . Route ------- -11/Scrapyard -10/Materials -10/Mines -9/Materials -9/Mines (discovered 3 exits: *Mat x2 / *Exi) -9/Exiles (discovered 2 exits: [*Min x2]) -8/Mines -8/Materials -7/Factory (discovered 2 exits: *Low / DSF) -7/DSF -6/Factory (discovered 2 exits: *Fac / *Ext) -5/Factory (discovered 2 exits: *Fac / *Upp) -5/Upper Caves -5/Upper Caves -5/Warlord -4/Proximity Caves -4/Factory (discovered 7 exits: Res x4 / *Upp x2 / Arm) -4/Upper Caves -4/Upper Caves (discovered 2 exits: *Res / *Zhi) -4/Zhirov -3/Proximity Caves -3/Research -2/Research (discovered 2 exits: *Acc / *Qua) -1/Access -1/Command History --------- Turn | Location | Event 29 | -11/Scrapyard | Discovered new exit (range 14) 69 | -11/Scrapyard | Entered Materials 254 | -10/Materials | Discovered new exit (range 7) 261 | -10/Materials | Entered Mines 268 | -10/Mines | Received a Rocket Launcher from a helpful Derelict 310 | -10/Mines | Build established: Mutant 401 | -10/Mines | Discovered new exit (range 2) 441 | -10/Mines | Entered Materials 441 | -9/Materials | Evolved 2 slots: Utility x2 729 | -9/Materials | Discovered new exit (range 16) 768 | -9/Materials | Entered Mines 772 | -9/Mines | Met a Derelict bent on vengeance 824 | -9/Mines | Assembled infested the area 866 | -9/Mines | Found a damaged Exp. Sensor Array with a note attached 868 | -9/Mines | Found Prototype Device 868 | -9/Mines | Identified Exp. Sensor Array 879 | -9/Mines | Destroyed 15 combat bots 1362 | -9/Mines | Discovered new exit (range 7) 1430 | -9/Mines | Identified exit to Materials 1861 | -9/Mines | Deemed a non-threat by the Exiles lab entrance 1861 | -9/Mines | Discovered new exit (range 5) 1866 | -9/Mines | Entered Exiles 1882 | -9/Exiles | Discovered new exit (range 15) 1905 | -9/Exiles | Met 8R-AWN 1925 | -9/Exiles | Met EX-HEX 2003 | -9/Exiles | Met EX-BIN 2020 | -9/Exiles | Aligned with FarCom system 2021 | -9/Exiles | Given EX-Vault access code 2072 | -9/Exiles | Opened EX-Vault 2089 | -9/Exiles | Found Field Lobotomy Kit 2121 | -9/Exiles | Warned to stay clear of 0b10 Research branches 2156 | -9/Exiles | Met EX-DEC 2161 | -9/Exiles | Learned location of Zion (-7) 2207 | -9/Exiles | Discovered new exit (range 12) 2219 | -9/Exiles | Left Exiles lab with Field Lobotomy Kit 2219 | -9/Exiles | Entered Mines 2233 | -8/Mines | Discovered exit to Materials (range 10) 2250 | -8/Mines | Entered Materials 2250 | -8/Materials | Evolved 2 slots: Propulsion x2 2560 | -8/Materials | Build established: Scavenger-Sprinter 2647 | -8/Materials | Discovered new exit (range 15) 2653 | -8/Materials | Identified exit to Factory 2655 | -8/Materials | Entered Factory 2655 | -7/Factory | Evolved 2 slots: Utility x2 2695 | -7/Factory | Repaired Imp. Heat Sink 2706 | -7/Factory | Discovered new exit (range 12) 2724 | -7/Factory | Identified exit to Lower Caves 2762 | -7/Factory | Identified exit to DSF 2763 | -7/Factory | Entered DSF 2789 | -7/DSF | Additional patrols routed to DSF 2795 | -7/DSF | Discovered new exit (range 14) 2798 | -7/DSF | Identified exit to Factory 2798 | -7/DSF | Entered Factory 2798 | -6/Factory | Evolved 2 slots: Utility x2 2834 | -6/Factory | Discovered new exit (range 16) 2838 | -6/Factory | Identified exit to Extension 3060 | -6/Factory | Lost 3 parts (2n1u) 3313 | -6/Factory | Build established: Sprinter 3367 | -6/Factory | Discovered new exit (range 16) 3372 | -6/Factory | Identified exit to Factory 3390 | -6/Factory | Entered another Factory area 3390 | -5/Factory | Evolved 2 slots: Power x1, Utility x1 3701 | -5/Factory | Discovered new exit (range 5) 3702 | -5/Factory | Identified exit to Upper Caves 3722 | -5/Factory | Discovered new exit (range 21) 3762 | -5/Factory | Entered Upper Caves 3774 | -5/Upper Caves | Learned Factory terminal intel 3804 | -5/Upper Caves | Encountered a Warlord checkpoint 3815 | -5/Upper Caves | Discovered new exit (range 18) 3819 | -5/Upper Caves | Identified exit to Upper Caves 3820 | -5/Upper Caves | Entered another Upper Caves area 3928 | -5/Upper Caves | Discovered new exit (range 3) 3928 | -5/Upper Caves | Identified exit to Warlord 3929 | -5/Upper Caves | Entered Warlord 3959 | -5/Warlord | Learned location of Testing (-3) 3959 | -5/Warlord | Learned Quarantine emergency access door positions 3959 | -5/Warlord | Learned 4 Armory zone layouts 3959 | -5/Warlord | Learned 4 Access zone layouts 3959 | -5/Warlord | Learned 4 Testing zone layouts 3959 | -5/Warlord | Learned Quarantine security intel 3959 | -5/Warlord | Learned Armory garrison access intel 3959 | -5/Warlord | Learned Research garrison access intel 3974 | -5/Warlord | Visited the Vortex Lab 3996 | -5/Warlord | Warlord's base attacked by MAIN.C 4049 | -5/Warlord | Met Warlord 4106 | -5/Warlord | Opened side exit 4163 | -5/Warlord | Discovered new exit (range 9) 4165 | -5/Warlord | Identified exit to Proximity Caves 4165 | -5/Warlord | Entered Proximity Caves 4328 | -4/Proximity Caves | Attracted the attention of an 0b10 outpost 4345 | -4/Proximity Caves | Learned location of 1 exit from Research 4362 | -4/Proximity Caves | Attracted the attention of an 0b10 checkpoint 4368 | -4/Proximity Caves | Assimilated B-60 Warrior with FLK Orb 4371 | -4/Proximity Caves | Assimilated G-67 Veteran with FLK Orb 4374 | -4/Proximity Caves | Assimilated I-47 Archangel with FLK Orb 4377 | -4/Proximity Caves | Assimilated H-77 Assassin with FLK Orb 4408 | -4/Proximity Caves | Lost 5 parts (1p1n3u) 4427 | -4/Proximity Caves | Discovered new exit (range 2) 4427 | -4/Proximity Caves | Identified exit to Factory 4448 | -4/Proximity Caves | Entered Factory 4448 | -4/Factory | Accompanied by 3 allies 4448 | -4/Factory | Evolved 2 slots: Propulsion x1, Utility x1 4449 | -4/Factory | Loaded intel: 26 terminal locations 4719 | -4/Factory | Identified exit to Upper Caves 4719 | -4/Factory | Identified exit to Armory 4784 | -4/Factory | Identified exit to Research 4884 | -4/Factory | Entered Upper Caves 4884 | -4/Upper Caves | Accompanied by 1 ally 4913 | -4/Upper Caves | Attracted the attention of an 0b10 outpost 4956 | -4/Upper Caves | Discovered new exit (range 4) 4956 | -4/Upper Caves | Identified exit to Upper Caves 4960 | -4/Upper Caves | Entered another Upper Caves area 4979 | -4/Upper Caves | Discovered exit to Research (range 7) 4999 | -4/Upper Caves | Assimilated H-77 Assassin with FLK Orb 5046 | -4/Upper Caves | Attacked by a delusional Derelict stockpiling parts 5054 | -4/Upper Caves | Attracted the attention of an 0b10 checkpoint 5200 | -4/Upper Caves | Learned Research emergency access door positions 5230 | -4/Upper Caves | Discovered new exit (range 4) 5231 | -4/Upper Caves | Identified exit to Zhirov 5231 | -4/Upper Caves | Entered Zhirov 5231 | -4/Zhirov | Discovered new exit (range 3) 5232 | -4/Zhirov | Identified exit to Proximity Caves 5237 | -4/Zhirov | Met Zhirov 5242 | -4/Zhirov | Learned location of Command (-1) 5243 | -4/Zhirov | Learned location of Quarantine (-2) 5248 | -4/Zhirov | Zhirov requested help retrieving the SGEMP Prototype 5282 | -4/Zhirov | Found Alien Artifact 5292 | -4/Zhirov | Entered Proximity Caves 5414 | -3/Proximity Caves | Attracted the attention of an 0b10 outpost 5418 | -3/Proximity Caves | Identified Transdimensional Reconstructor 5418 | -3/Proximity Caves | Warped through subspace 5519 | -3/Proximity Caves | Crushed by falling debris 5526 | -3/Proximity Caves | Crushed by falling debris 5527 | -3/Proximity Caves | Discovered exit to Research (range 12) 5531 | -3/Proximity Caves | Entered Research 5531 | -3/Research | Evolved 2 slots: Propulsion x1, Utility x1 5532 | -3/Research | Identified exit to Research 5534 | -3/Research | Loaded intel: 4 garrison access locations 5684 | -3/Research | Found Prototype Device 5684 | -3/Research | Identified Exp. Thermal Defense Suite 5858 | -3/Research | Entered another Research area 5858 | -2/Research | Warlord forces began assault on 0b10 5858 | -2/Research | Evolved 2 slots: Power x1, Propulsion x1 5923 | -2/Research | Met up with Warlord 5968 | -2/Research | Research machine network offline 5968 | -2/Research | Spotted B-90 Cyclops 6140 | -2/Research | Found Centrium Greatsword 6160 | -2/Research | Build established: Generator-Sprinter 6181 | -2/Research | Spotted Executioner 6291 | -2/Research | Spotted B-90 Cyclops 6315 | -2/Research | Spotted B-90 Cyclops 6332 | -2/Research | Discovered new exit (range 14) 6354 | -2/Research | Identified exit to Quarantine 6368 | -2/Research | Borebot progress halted 6385 | -2/Research | Spotted Striker 6402 | -2/Research | Borebot progress halted 6524 | -2/Research | Discovered new exit (range 16) 6529 | -2/Research | Identified exit to Access 6529 | -2/Research | Entered Access 6529 | -1/Access | Evolved 2 slots: Propulsion x2 6607 | -1/Access | Found Prototype Hackware 6607 | -1/Access | Identified Exp. System Shield 6715 | -1/Access | Spotted B-99 Colossus 7141 | -1/Access | Build established: Hacker-Sprinter 7210 | -1/Access | Spotted B-99 Colossus 7210 | -1/Access | Spotted B-99 Colossus 7223 | -1/Access | Discovered new exit (range 3) 7223 | -1/Access | Entered Command 7229 | -1/Command | Found Fusion Bomb Launcher 7448 | -1/Command | Spotted B-99 Colossus 7550 | -1/Command | Spotted M Guard 7550 | -1/Command | Spotted M Guard 7550 | -1/Command | Spotted Combat Programmer 7551 | -1/Command | Spotted Combat Programmer 7570 | -1/Command | Core integrity fell below 50% 7576 | -1/Command | Core integrity fell below 20% 7578 | -1/Command | System corruption reached 10% 7579 | -1/Command | Destroyed by M Guard with Ragnarok Missile Launcher Last Messages --------------- 07563_ Cld. Nuclear Pulse Thruster destroyed. 07563_ Adv. Weight Redist. System destroyed. 07564_ EMDS Slug penetrates Reinforced Barrier. 07565_ Fusion Bomb Launcher destroyed. 07565_ Destroyed Fusion Bomb Launcher. 07566_ EMDS Slug penetrates Reinforced Barrier. 07566_ Lgt. Quantum Reactor destroyed. 07569_ Penetrated by EMDS Slug. 07569_ Adv. Hacking Suite destroyed. 07570_ Micro-nuke Launcher destroyed. 07570_ Destroyed Micro-nuke Launcher. 07572_ Penetrated by EMDS Slug. 07573_ Med. Storage Unit destroyed. 07574_ Penetrated by EMDS Slug. 07575_ Enh. Nova Cannon blasted off. 07577_ Penetrated by EMDS Slug. 07579_ Slammed into P-80 Master. 07579_ Enh. Optical Array broken. 07579_ Destabilizing: Short circuit. [Achievement: Back For More] Map ----- +----------------------------------------------------+ | ??????????????????????????????????????????# | | ??????????????????????????????????????????# [ | | ??????????????????????????????????????????# | | ??????????????????????????????????????????# | | ??????????????????????????????????????????# | | ??????????????????????????????????????????# | | ??????????????????????????????????????????# | | ??????????????????????????????????????????# | | ??????????????????????????????????????????######## | | ?????????????????????????????????????????????????? | | ?????????????????????????????????????????????????? | | ?????????????????????????????????????????????????? | | ?????????????????????????????????????????????????? | | ?????????????????????????????????????????????????? | | ?????????????????????????????????????????????????? | | ?????????????????????????????????????????????????? | | ?????????????????????????????????????????????????? | | ?????????????????????????????????????????????????? | | ?????????????????????????????????????????????????? | | ??????????????????????????????####?#?????????????? | | ???????????????#"""########?## # ####?#####????? | | ???????????????# ] # ### #?# #????? | | ???????????????# ## W W # # W ### W ###### | | ???????????????# p p p + | | ???????????????# Y p + | | ???????????????# Y %@ + | | ???????????????# p + | | ???????????????# p + | | ???????????????# # W # W ### W #####+ | | ???????????????###### % ### #?# #????? | | ???????????????????# ####?#####?#####????? | | ??????????????????# # #???????????????????? | | ??????????????????## ## ####???????????????????? | | ???????????????????##?# #??????????????????????? | | ??????????????????????# #??????????????????????? | | ??????????????????????# #??????????????????????? | | ??????????????????????# #??????????????????????? | | ??????????????????????# #??????????????????????? | | ??????????????????????# #??????????????????????? | | ??????????????????????# #??????????????????????? | | ??????????????????????# #??????????????????????? | | ??????????????????????# #??????????????????????? | | ??????????????????????# #??????????????????????? | | ??????????????????????# #??????????????????????? | | ??????????????????????# #??????????????????????? | | ??????????????????????# #??????????????????????? | | ??????????????????????#####??????????????????????? | | ?????????????????????????????????????????????????? | | ?????????????????????????????????????????????????? | | ?????????????????????????????????????????????????? | +----------------------------------------------------+ Best States ------------- Heat Dissipation 81 Energy Generation 59 Energy Capacity 390 Matter Stores 300 Matter Capacity 300 Sight Range 22 Robot Scan Range 20 Terrain Scan Density 10 Jamming Range 16 Cloak Strength 3 Additional Mass Support 9 Corruption Block 20 Armor Coverage 150 Propulsion Shielding 90 Phase Shifting 15 Evasion (%) 90 Targeting Accuracy 14 Offensive Hacking 24 Defensive Hacking 16 Item Schematics ----------------- Lgt. Quantum Reactor | -4/Factory | Hacked Assault Drone Bay | -4/Zhirov | Free Exp. Heat Sink | -4/Zhirov | Free Exp. Optical Array | -4/Zhirov | Free Imp. Arc Thrower | -4/Zhirov | Free Robot Schematics ------------------ None Fabricated ------------ Nothing Alien Tech Used ----------------- Transdimensional Reconstructor Achievements -------------- Back For More Exterminator Challenges ------------ None Game ------ Seed RecoilHugeKatana Manual? 0 Play Time 06:44:03 Cumulative 121.0 hours Start 2022.04.24 @ 19:47:59 End 2022.04.28 @ 16:45:23 Sessions 11 Manual Loads 0 Difficulty Rogue Special Mode None Game No. 50 Rogue 50 Adventurer 0 Explorer 0 Win Type - Total 4 Types 4/0/0/0/0/0/0/0/0 Lore% 48 Gallery% 60 Achievement% 48 Wizard Run 0 Options --------- ASCII 0 Keyboard 0 Movement Numpad Keybinds 0 Fullscreen 1 Font 24/Smallcaps Map View 113x50 Tactical HUD 1 Map Filters NONE Filters NONE Steam 1 RUN: 3c38918e-396a-4bf6-8b39-9c8dd11e9561